[Event "5th Baskent University Open 2022"]
[Site "Ankara"]
[Date "2022.07.06"]
[Round "7.21"]
[White "Metin, Enis"]
[Black "Turkmen, Ataberk"]
[Result "1-0"]
[ECO "E46"]
[WhiteElo "1750"]
[BlackElo "1935"]
[Annotator "TA"]
[PlyCount "183"]
[EventDate "2022.07.02"]
[EventType "swiss"]
[EventCountry "TUR"]
[SourceTitle "playchess.com"]
[Source "ChessBase"]
[SourceQuality "1"]
[TimeControl "5400+30"]

{[%evp 14,183,0,0,14,-16,0,-4,0,-9,0,9,12,12,39,43,53,9,21,7,22,28,29,0,38,49,40,50,55,4,158,129,128,81,87,84,201,197,204,187,190,187,242,225,290,256,276,278,288,283,342,286,283,241,379,283,300,283,279,241,277,249,292,298,483,397,379,324,588,553,540,370,346,171,431,255,383,360,445,390,362,385,347,244,248,122,189,189,189,189,220,189,189,189,189,189,189,189,189,189,189,175,168,136,137,133,133,137,141,141,143,137,165,151,151,148,141,102,166,140,194,168,211,185,203,0,201,213,188,136,448,448,5065,4352,4133,4133,2661,1168,29970,29971,29963,29968,29954,7184,29969,29970,6544,6540,29978,29979,29979,29980,29980,29979,29979,0,29980,29981,29981,29982,29982,29983,29983,29984,29985,29986,29986,29987,29987,29988,29988,29989]} 1. d4 {[%emt 0:01:00]} Nf6 {[%emt 0:01:00]} 2. c4 {[%emt 0:00:00]} e6 {[%emt 0:01:30]} 3. Nc3 {[%emt 0:00:00]} Bb4 {[%emt 0:00:30]} 4. e3 {[%emt 0:00:30]} O-O {[%emt 0:01:30]} 5. Nge2 {[%emt 0:00:00]} d5 {[%emt 0:04:30]} 6. a3 {[%emt 0:00:00]} Be7 {[%emt 0:00:30]} 7. cxd5 {[%emt 0:00:00]} exd5 {[%emt 0:00:30]} 8. Nf4 {[%emt 0:00:00]} b6 {[%emt 0:04:30] E46: Nimzo-Indian: Rubinstein: 4 e3 0-0 5 Ne2 without early Bd3.} 9. Be2 {[%emt 0:02:30][%cal Oc3d5]} Bb7 {[%emt 0:01:30]} 10. O-O {[%emt 0:01:30]} Re8 {[%emt 0:13:30] The position is equal.} 11. Bf3 {[%emt 0:04:30]} Bf8 {[%emt 0:01:30] [#]} 12. Qc2 $146 {[%emt 0:06:30]} ({Predecessor:} 12. Bd2 Ne4 13. Qc2 Nxd2 14. Qxd2 c6 15. Rac1 Nd7 16. Nd3 Nf6 17. Ne5 Bd6 18. Nd3 {0-1 (52) Fraggoulis,E-Azis Azizis,E (2022) Ermioni Argolidas 2006}) 12... a6 {[%emt 0:16:30]} 13. Bd2 {[%emt 0:11:30]} Qd6 {[%emt 0:20:30]} 14. Qb3 {[%emt 0:09:30][%cal Rf4d5]} Rd8 $1 {[%emt 0:04:30]} 15. Na4 {[%emt 0:02:30]} Nc6 {[%emt 0:07:44]} 16. Rac1 $36 {[%emt 0:02:30][%mdl 2048] White fights for an advantage.} Qd7 {[%emt 0:04:25]} 17. g3 {[%emt 0:03:30]} Ne4 {[%emt 0:01:01]} 18. Rfd1 {[%emt 0:02:30]} Nxd2 {[%emt 0:01:44]} 19. Rxd2 {[%emt 0:00:30][%cal Rf3d5]} Na5 {[%emt 0:00:05]} 20. Qc2 {[%emt 0:00:00]} Rac8 {[%emt 0:01:56]} 21. Qd1 {[%emt 0:02:00]} (21. Rdd1 $14) 21... Nc6 $2 {[%emt 0:08:38]} (21... Rb8 $11) 22. Nxd5 {[%emt 0:00:30] aiming for Rdc2.} Na5 {[%emt 0:00:10] [#]} 23. e4 {[%emt 0:00:30] White is much more active.} (23. Nac3 $142 $1) 23... Bxd5 $16 {[%emt 0:00:36]} 24. exd5 {[%emt 0:00:30][%cal Od5d6]} Bd6 {[%emt 0:00:20]} (24... Nb7 $16 {is a better defense.}) 25. b4 $18 {[%emt 0:01:30]} Nb7 {[%emt 0:00:04] [#]} 26. Nc5 $1 {[%emt 0:01:30][%mdl 512]} bxc5 {[%emt 0:01:09]} 27. dxc5 {[%emt 0:01:30]} Nxc5 {[%emt 0:01:48]} (27... Ra8 $142 28. Bg4 (28. cxd6 Nxd6 29. Rdc2 Qa4 $18) 28... Qe7) 28. bxc5 {[%emt 0:00:30]} Bf8 {[%emt 0:00:00]} 29. Bg4 {[%emt 0:00:30]} f5 {[%emt 0:00:00]} 30. Be2 {[%emt 0:00:00]} Kh8 {[%emt 0:01:23]} 31. a4 {[%emt 0:02:00]} (31. Bxa6 Ra8 $18) 31... Ra8 {[%emt 0:00:39]} 32. Rb2 {[%emt 0:01:30]} Ra7 {[%emt 0:01:53]} 33. Bf3 {[%emt 0:00:00]} g6 {[%emt 0:00:09]} (33... Qe7 $142 34. Qd4 Rc8) 34. Rb4 {[%emt 0:04:00]} Qe7 {[%emt 0:00:36]} 35. Qd2 {[%emt 0:01:30] Prevents Bh6.} Bg7 {[%emt 0:00:06]} 36. Qd3 {[%emt 0:00:30]} Bf6 {[%emt 0:00:11]} 37. Rbb1 {[%emt 0:01:30]} Qd7 {[%emt 0:00:19]} 38. Qc4 {[%emt 0:00:00]} Re8 $2 {[%emt 0:01:26]} (38... Qf7 39. a5 Qg7) 39. Re1 {[%emt 0:00:00]} Kg7 {[%emt 0:00:52]} 40. Kf1 {[%emt 0:00:30]} Raa8 $2 {[%emt 0:00:01]} (40... h5 41. Re6 Qf7) 41. Rxe8 {[%emt 0:00:30]} Rxe8 {[%emt 0:00:08]} 42. Qxa6 {[%emt 0:00:30]} f4 {[%emt 0:00:27]} 43. Qb5 {[%emt 0:00:30]} (43. gxf4 Qh3+ 44. Bg2 Qf5 $16) (43. Kg2 $142) 43... Qc8 {[%emt 0:01:08]} (43... Qh3+ 44. Bg2 Qf5) 44. d6 {[%emt 0:00:30]} (44. Kg2 $142) 44... cxd6 {[%emt 0:00:30]} (44... Qh3+ {might work better.} 45. Bg2 Qf5) 45. cxd6 {[%emt 0:00:30][%cal Bc5d6,Bd6d7][%mdl 32] Threatens to win with d7.} Qh3+ {[%emt 0:00:32]} 46. Bg2 {[%emt 0:00:30]} Qe6 {[%emt 0:00:00]} 47. d7 {[%emt 0:00:30]} (47. gxf4 Qxd6 48. Bf3 (48. Qxe8 Qd3+ 49. Qe2 Qxb1+ 50. Qe1 Qd3+ 51. Kg1 Qd4 $14) 48... Rf8 $16) 47... Rf8 {[%emt 0:00:45]} 48. Rd1 {[%emt 0:00:30] Inhibits Qd6. Black must now prevent a5.} (48. gxf4 Qd6 49. a5 Rd8 $18) 48... Bd8 {[%emt 0:00:30]} 49. a5 {[%emt 0:00:00]} (49. Re1 $18 {is more deadly.} Qd6 50. Qd5) 49... f3 {[%emt 0:00:11]} (49... fxg3 $16 {keeps fighting.} 50. hxg3 Qf6) 50. Bh1 {[%emt 0:00:00] Strongly threatening a6.} Rf5 {[%emt 0:01:06]} 51. Qb2+ {[%emt 0:00:30]} Kh6 {[%emt 0:00:12]} 52. Qc1+ {[%emt 0:00:30]} Kg7 {[%emt 0:00:30]} 53. Qc3+ {[%emt 0:00:30]} Qf6 {[%emt 0:00:13]} 54. Qxf6+ {[%emt 0:00:30]} Kxf6 {[%emt 0:01:23][%mdl 4096] Endgame KRB-KRB} 55. a6 {[%emt 0:00:30] Ra1 is the strong threat.} Ra5 {[%emt 0:00:00] Inhibits Ra1.} 56. Bxf3 {[%emt 0:00:00]} Rxa6 {[%emt 0:00:13]} 57. Bg4 {[%emt 0:00:00]} h5 {[%emt 0:00:06]} 58. Bh3 {[%emt 0:00:00]} g5 {[%emt 0:00:04]} 59. Rd5 {[%emt 0:01:00]} Ra1+ {[%emt 0:00:59]} 60. Ke2 {[%emt 0:00:30]} g4 {[%emt 0:00:14]} 61. Bg2 {[%emt 0:00:30]} ({Much weaker is} 61. Rxh5 $6 Ra2+ 62. Ke3 Ra3+ 63. Kf4 Ra4+ 64. Ke3 Ra3+ 65. Kf4 Ra4+ 66. Ke3 Ra3+ $11) 61... Ra2+ {[%emt 0:00:51]} 62. Rd2 {[%emt 0:00:00]} Ra5 {[%emt 0:00:48]} 63. Bd5 {[%emt 0:01:00]} Ke7 {[%emt 0:01:09]} 64. Bc6 {[%emt 0:00:30]} Rc5 {[%emt 0:00:30]} 65. Be4 {[%emt 0:00:30]} Rc4 {[%emt 0:00:30]} (65... Ba5 $16 {was called for.}) 66. Ke3 {[%emt 0:00:30]} Bc7 {[%emt 0:00:30]} (66... Rc5 $16 67. f4 gxf3 68. Kxf3 (68. Bxf3 Bb6 $16) 68... Ba5) 67. Rd5 {[%emt 0:00:30]} Bb6+ {[%emt 0:00:30]} 68. Kf4 {[%emt 0:00:30]} Bc7+ {[%emt 0:00:30]} 69. Ke3 {[%emt 0:00:00]} Bb6+ {[%emt 0:00:03]} 70. Kd3 {[%emt 0:00:00]} Ra4 {[%emt 0:00:31]} 71. Bf5 {[%emt 0:00:00]} ({Stronger than} 71. Rxh5 Rd4+ 72. Kc3 Rxe4 $15) (71. Bg6 $18) 71... Ra2 $2 {[%emt 0:00:27][%mdl 8192]} (71... Ra3+ $16 72. Kc4 Ra5) 72. Re5+ {[%emt 0:00:00]} Kf7 {[%emt 0:00:41]} (72... Kf8 $142 73. Re8+ Kg7) 73. Be6+ {[%emt 0:00:30]} Kf6 {[%emt 0:00:30]} 74. Bxa2 {[%emt 0:00:30] Intending Re6+ and mate.} Kxe5 {[%emt 0:00:00] KB-KB} 75. Bf7 {[%emt 0:00:00]} h4 {[%emt 0:00:32]} 76. gxh4 {[%emt 0:00:00][%cal Bg3h4,Bh4h5,Bh5h6,Bh6h7][%mdl 32]} Kf6 {[%emt 0:00:01]} 77. Be8 {[%emt 0:00:30]} Ke7 {[%emt 0:00:29]} 78. Ke2 {[%emt 0:00:30]} Bc7 {[%emt 0:00:00]} 79. h5 {[%emt 0:04:30]} Bf4 {[%emt 0:01:47]} 80. Kf1 {[%emt 0:00:30] Threatening mate with Kg2.} Bxh2 {[%emt 0:00:15]} 81. h6 {[%emt 0:00:00]} Bf4 {[%emt 0:00:31] [#]} 82. h7 $1 {[%emt 0:01:00]} Be5 {[%emt 0:00:30]} 83. Kg2 {[%emt 0:00:30]} Kd8 {[%emt 0:00:30]} 84. Kf1 {[%emt 0:00:00]} Ke7 $1 {[%emt 0:00:00]} 85. Ke2 {[%emt 0:00:00] White mates.} Kd8 {[%emt 0:00:24]} 86. Ke3 {[%emt 0:00:00]} Ke7 {[%emt 0:01:39]} 87. Ke4 {[%emt 0:00:00]} Bh8 {[%emt 0:00:30]} 88. Kf5 {[%emt 0:00:00]} Bg7 {[%emt 0:00:32]} 89. Kxg4 {[%emt 0:00:00]} Bh8 {[%emt 0:00:30]} 90. Kf5 {[%emt 0:00:00]} Bg7 {[%emt 0:00:00]} 91. Kg6 {[%emt 0:00:00]} Bd4 {[%emt 0:00:00]} 92. f4 {[%emt 0:00:00] Weighted Error Value: White=0.29 (precise) /Black=0.38} 1-0

[Event "5th Baskent University Open 2022"]
[Site "Ankara"]
[Date "2022.07.06"]
[Round "7.22"]
[White "Buke, Furkan"]
[Black "Saka, Omer"]
[Result "1/2-1/2"]
[ECO "B12"]
[WhiteElo "1979"]
[BlackElo "1832"]
[Annotator "TA"]
[PlyCount "142"]
[EventDate "2022.07.02"]
[EventType "swiss"]
[EventCountry "TUR"]
[SourceTitle "playchess.com"]
[Source "ChessBase"]
[SourceQuality "1"]
[TimeControl "5400+30"]

{[%evp 9,142,0,68,33,31,37,41,26,26,12,28,12,24,15,65,50,79,78,74,63,55,56,90,33,33,0,49,0,47,53,82,83,81,27,55,47,226,213,219,202,207,232,221,82,90,0,0,0,30,-37,-44,-14,0,0,0,0,0,0,5,17,54,50,32,0,134,152,164,149,189,196,238,275,220,149,393,112,105,105,554,550,556,385,445,357,333,261,321,126,126,126,126,126,126,126,126,126,126,126,126,126,125,125,29975,29976,29976,29977,29977,29978,29978,0,0,0,0,0,0,0,0,0,0,0,0,0,0,0,0,0,0,0,0,0,0,0,0,8,8]} 1. e4 {[%emt 0:01:00]} c6 {[%emt 0:01:00]} 2. d4 {[%emt 0:00:30]} d5 {[%emt 0:00:30]} 3. e5 {[%emt 0:00:30]} c5 {[%emt 0:00:30]} 4. dxc5 {[%emt 0:00:00]} e6 {[%emt 0:00:00]} 5. a3 {[%emt 0:01:00]} a5 {[%emt 0:00:00]} (5... Bxc5 $11 6. Qg4 Ne7) 6. Nf3 {[%emt 0:02:30] B12: Caro-Kann: Advance Variation.} (6. Bb5+ $6 Bd7 7. Nc3 Bxc5 $11) 6... Bxc5 {[%emt 0:03:30]} 7. Bd3 {[%emt 0:06:30]} Nc6 {[%emt 0:09:30]} 8. O-O {[%emt 0:02:30] White is slightly better.} Nge7 {[%emt 0:05:30]} 9. Nc3 {[%emt 0:04:30]} Ng6 {[%emt 0:06:30]} 10. Qe2 {[%emt 0:03:30]} O-O {[%emt 0:04:30]} 11. Nb5 {[%emt 0:03:30] [#]} f5 $146 {[%emt 0:07:30]} (11... Bd7 $11) ({Predecessor:} 11... b6 12. c4 dxc4 13. Bxc4 Ba6 14. Bg5 Qb8 15. Rfe1 Bxb5 16. Bxb5 Nd4 17. Nxd4 Bxd4 {½-½ (69) Hjartarson,J (2525)-Sharapov,E (2380) Chess.com INT 2020}) 12. c4 $14 {[%emt 0:24:30]} Nge7 {[%emt 0:10:30]} 13. Be3 {[%emt 0:03:30]} d4 {[%emt 0:06:30]} 14. Bd2 {[%emt 0:04:30] White is much more active. The black rooks are badly placed.} a4 {[%emt 0:06:30]} 15. Rad1 {[%emt 0:04:30]} Qb6 {[%emt 0:05:30]} 16. Nh4 {[%emt 0:03:30]} ({White should play} 16. h4 $16) 16... Bd7 {[%emt 0:10:30]} 17. f4 {[%emt 0:05:30]} Ng6 {[%emt 0:03:04]} (17... Na5 $11) 18. Nf3 {[%emt 0:03:30]} (18. Nxg6 $14 {was preferrable.} hxg6 19. Qe1) 18... Nce7 {[%emt 0:02:18]} (18... Na5 $11 {should be considered.}) 19. Kh1 {[%emt 0:06:54]} Bxb5 {[%emt 0:00:20]} 20. cxb5 {[%emt 0:00:30][%cal Og2g4]} Nd5 {[%emt 0:00:33]} 21. Ng5 {[%emt 0:01:14]} (21. g3 $16) 21... h6 $11 {[%emt 0:02:51]} 22. Qh5 {[%emt 0:02:58]} Nde7 {[%emt 0:01:56]} (22... Nge7 $14 23. Nf3 Rad8) 23. Nf3 $18 {[%emt 0:02:18]} Rf7 {[%emt 0:01:59] [#]} 24. g4 $1 {[%emt 0:00:49]} Nf8 {[%emt 0:00:39]} 25. Rg1 {[%emt 0:03:25]} Qd8 {[%emt 0:04:42]} 26. gxf5 {[%emt 0:02:33]} (26. g5 $18 {has better winning chances.}) 26... Nxf5 $16 {[%emt 0:00:17]} 27. Qh3 {[%emt 0:02:14]} (27. Rg2 $16) 27... Qd5 $11 {[%emt 0:01:14]} 28. Qg2 {[%emt 0:00:25]} b6 {[%emt 0:00:56]} 29. Bxf5 {[%emt 0:01:36]} (29. Qe2 $11) 29... exf5 $15 {[%emt 0:00:30]} 30. Be3 {[%emt 0:02:51][%cal Re3d4]} Ne6 {[%emt 0:02:10] Strongly threatening ...Rd8.} 31. Nxd4 {[%emt 0:00:48]} Qxg2+ {[%emt 0:00:33]} 32. Kxg2 {[%emt 0:00:43]} Bxd4 {[%emt 0:01:38]} 33. Bxd4 {[%emt 0:00:16]} Nxf4+ {[%emt 0:00:18]} 34. Kf3 {[%emt 0:00:32]} g5 {[%emt 0:00:30]} 35. Bxb6 {[%emt 0:00:30]} Re8 {[%emt 0:01:06]} 36. Rge1 {[%emt 0:00:49]} Ne6 {[%emt 0:00:37]} (36... Rb7 $11 37. Rd6 Re6) 37. Bf2 $16 {[%emt 0:00:47]} Kg7 {[%emt 0:01:22]} 38. b6 $36 {[%emt 0:00:14][%mdl 2048] Black is under strong pressure.} h5 {[%emt 0:00:42]} 39. Rd6 {[%emt 0:00:36]} Kg6 {[%emt 0:00:39]} 40. Rc1 {[%emt 0:00:40] Black must now prevent Rcc6.} g4+ {[%emt 0:00:13]} 41. Kg2 {[%emt 0:00:00] And now Rcc6 would win.} Kg5 $2 {[%emt 0:00:34]} (41... f4 $16 {is a better defense.} 42. Rc4 Kf5) 42. h4+ $2 {[%emt 0:00:48]} (42. Rcc6 $18 Rfe7 43. h4+ gxh3+ 44. Kxh3 Nf4+ 45. Kg3) 42... gxh3+ {[%emt 0:00:43]} 43. Kxh3 {[%emt 0:01:00] Hoping for Rcc6.} Nf4+ $2 {[%emt 0:00:30][%mdl 8192]} (43... f4 $16 {is tougher.}) 44. Kh2 $18 {[%emt 0:00:00]} Kg4 {[%emt 0:00:00]} 45. Rc3 {[%emt 0:00:35]} h4 {[%emt 0:00:31] Inhibits Rg3+.} 46. Rh6 {[%emt 0:00:57]} Rxe5 {[%emt 0:01:23]} 47. Rxh4+ {[%emt 0:00:30]} Kg5 {[%emt 0:00:00]} 48. Rxf4 $2 {[%emt 0:00:50]} Kxf4 {[%emt 0:00:19][%mdl 4096] Endgame KRR-KRB} 49. Bg3+ {[%emt 0:00:30]} Ke4 {[%emt 0:00:00] aiming for ...f4.} 50. Bxe5 {[%emt 0:00:12]} Kxe5 $16 {[%emt 0:00:00] KR-KR} 51. Rc7 {[%emt 0:00:44] Against Rb7} Rf8 {[%emt 0:01:20]} 52. b7 {[%emt 0:00:30] Threatening mate with Rc8.} Rb8 {[%emt 0:00:00]} 53. Kg3 {[%emt 0:00:00]} Kd6 {[%emt 0:00:32] Against Rd7+} 54. Rf7 {[%emt 0:00:39]} Kc6 {[%emt 0:00:18]} 55. Kf4 {[%emt 0:00:49]} ({Much weaker is} 55. Rxf5 $6 Rxb7 56. Rf2 Kd5 $11) 55... Rxb7 $2 {[%emt 0:00:01][%mdl 8192]} (55... Rh8 $16 56. Rh7 (56. Kxf5 Rh5+ 57. Kg6 Rb5 $11) 56... Rf8) 56. Rxb7 {[%emt 0:00:01]} Kxb7 {[%emt 0:00:30]} 57. Kxf5 {[%emt 0:00:30] KPP-KP} Kc6 {[%emt 0:00:30]} 58. Ke4 {[%emt 0:00:30]} Kc5 {[%emt 0:00:30] [#]} 59. Kd3 $2 {[%emt 0:00:30]} (59. Ke5 $1 {mates} Kc4 60. Kd6 Kd4 61. Kc6 Kc4 62. Kb6 Kd3 63. Kb5 Kd4 64. Kxa4) 59... Kd5 $11 {[%emt 0:00:30] The position is equal.} 60. Kc3 {[%emt 0:00:30]} Kc5 {[%emt 0:00:30]} 61. Kd3 {[%emt 0:00:30]} Kd5 {[%emt 0:00:30]} 62. Kc3 {[%emt 0:00:30] Intending Kb4 and mate.} Kc5 {[%emt 0:00:30]} 63. Kc2 {[%emt 0:00:30] White threatens Kc3 and mate.} Kc6 {[%emt 0:00:30]} 64. Kb1 {[%emt 0:00:30]} Kc5 {[%emt 0:00:30]} 65. Kc1 {[%emt 0:00:30]} Kd5 {[%emt 0:00:30]} 66. Kd1 {[%emt 0:00:30]} Kc5 {[%emt 0:00:30]} 67. Ke2 {[%emt 0:00:30]} Kc4 {[%emt 0:00:30]} 68. Kd2 {[%emt 0:00:30]} Kd4 {[%emt 0:00:30]} 69. Kc2 {[%emt 0:00:30]} Kc4 {[%emt 0:00:30]} 70. b4 {[%emt 0:00:30] Kc1 would kill now.} axb3+ {[%emt 0:00:30]} 71. Kb2 {[%emt 0:00:00]} Kd5 {[%emt 0:00:00] Black escapes into a draw.  Weighted Error Value: White=0.35/Black=0.51} 1/2-1/2

[Event "5th Baskent University Open 2022"]
[Site "Ankara"]
[Date "2022.07.06"]
[Round "7.23"]
[White "Gursu, Sungur"]
[Black "Yurtoglu, Osman Talha"]
[Result "0-1"]
[ECO "D00"]
[WhiteElo "1653"]
[BlackElo "1923"]
[Annotator "TA"]
[PlyCount "102"]
[EventDate "2022.07.02"]
[EventType "swiss"]
[EventCountry "TUR"]
[SourceTitle "playchess.com"]
[Source "ChessBase"]
[SourceQuality "1"]
[TimeControl "5400+30"]

{[%evp 9,102,-52,-43,-59,-72,-91,-88,-82,-91,-100,-92,-95,-79,-86,-85,-85,-79,-82,-75,-97,-88,-94,-87,-95,-89,-142,-94,-99,-24,-25,0,0,0,0,0,0,0,0,0,0,0,0,0,-8,-8,-12,-12,-16,-22,-19,0,-143,-66,-181,-38,-344,-347,-391,0,-287,-283,-287,-293,-583,-582,-583,-570,-709,-704,-704,-688,-869,-832,-769,-765,-1513,-1389,-1529,-1453,-1185,-1125,-29983,-29984,-29984,-29985,-29985,-29986,-29986,-29987,-29988,-29989,-29990,-29991,-29991,-29991]} 1. d4 {[%emt 0:01:00]} Nf6 {[%emt 0:01:00]} 2. f3 {[%emt 0:00:00]} d5 {[%emt 0:00:30]} 3. e4 {[%emt 0:00:00]} dxe4 {[%emt 0:00:30]} 4. Nc3 {[%emt 0:00:30]} exf3 {[%emt 0:00:30]} 5. Nxf3 {[%emt 0:00:30]} Bf5 {[%emt 0:00:00]} 6. Be3 {[%emt 0:04:30] D00: 1 d4 d5: Unusual lines.} e6 {[%emt 0:00:00] [#]} 7. a3 $146 {[%emt 0:01:30]} ({Predecessor:} 7. Bd3 Bxd3 8. Qxd3 Bd6 9. O-O c6 10. Rae1 Qc7 11. Ne5 Nbd7 12. Bf4 Rd8 13. Qe2 Nxe5 14. dxe5 {0-1 (48) Nemtzev,I (2137)-Kowalski,I (2312) Chess.com INT 2019}) 7... Nbd7 {[%emt 0:02:30]} 8. Qd2 {[%emt 0:00:30] Black is better.} c6 {[%emt 0:02:30]} 9. Bd3 {[%emt 0:10:30]} Bxd3 {[%emt 0:03:30]} 10. Qxd3 {[%emt 0:00:30]} Bd6 {[%emt 0:02:30]} 11. O-O-O {[%emt 0:04:30]} Qc7 {[%emt 0:04:30]} 12. Ng5 {[%emt 0:04:30]} h6 {[%emt 0:00:30]} 13. Nge4 {[%emt 0:02:30]} Bf4 {[%emt 0:07:30]} 14. Rhf1 {[%emt 0:04:30]} Bxe3+ {[%emt 0:01:30]} 15. Qxe3 {[%emt 0:00:00]} O-O-O {[%emt 0:17:30]} 16. Rd3 {[%emt 0:11:00][%cal Oc3b5]} Kb8 {[%emt 0:02:30]} (16... Qxh2 {is interesting.} 17. Qg3 Qxg3 18. Rxg3 Rhg8) 17. b4 {[%emt 0:10:30]} (17. h3 $142) 17... Nxe4 {[%emt 0:06:30]} (17... Qxh2 $142 18. Nxf6 Nxf6 19. Qe5+ Qxe5 20. dxe5 Rxd3 21. cxd3 Ng4 22. Rxf7 Nxe5 23. Rxg7 Rd8) 18. Nxe4 $17 {[%emt 0:00:30][%cal Bc3e4,Be4c5,Bc5e6][%mdl 32]} Nb6 {[%emt 0:00:30]} (18... Qxh2 $6 19. Rxf7 Qxg2 20. Nd6 $15) (18... Rhf8 $17 19. Qg3 f5) 19. Nc5 $11 {[%emt 0:05:30] Hoping for Qg3.} Rhe8 {[%emt 0:07:30]} 20. Qg3 $1 {[%emt 0:06:30] [#] aiming for Rxf7.} f6 {[%emt 0:01:30]} 21. Qxc7+ $1 {[%emt 0:03:30]} Kxc7 {[%emt 0:00:30][%cal Bb8c7,Bc7d7,Bd7e6,Be6d5][%mdl 32]} 22. Rg3 {[%emt 0:00:00]} Re7 {[%emt 0:10:30]} 23. Rxg7 $1 {[%emt 0:00:00][%mdl 64] [#] Decoy} Rxg7 {[%emt 0:00:00]} 24. Nxe6+ {[%emt 0:00:30]} Kd7 {[%emt 0:01:00]} 25. Nxg7 {[%emt 0:00:30][%mdl 4096] Endgame KRN-KRN} Rg8 {[%emt 0:00:00]} 26. Nh5 {[%emt 0:08:30]} Rxg2 {[%emt 0:00:00]} 27. Nxf6+ {[%emt 0:01:30]} Ke6 {[%emt 0:00:30]} 28. h4 {[%emt 0:03:12]} Nc4 {[%emt 0:00:30]} 29. Ne4 {[%emt 0:01:04]} Kd5 {[%emt 0:06:30]} 30. Nc5 {[%emt 0:04:34]} (30. Nf6+ $11 Ke6 31. c3) 30... b6 {[%emt 0:03:51]} (30... Kxd4 31. Rd1+ Ke5 32. Nxb7 $11) ({Better is} 30... Nxa3 $17 {Strongly threatening ...b6.} 31. Rf5+ Kxd4 32. Rf4+ Ke3 33. Re4+ Kf3) 31. Nb3 {[%emt 0:02:38]} (31. Nd3 $15 Kxd4 32. Rf4+ Kd5 33. c3) 31... Nxa3 {[%emt 0:01:56]} ({Black should try} 31... Ne3 $19 32. Rf6 Rxc2+ 33. Kb1 h5) 32. Kb2 $2 {[%emt 0:01:32][%mdl 8192]} ({Wrong is} 32. Rf5+ $2 Ke4 33. Rf6 (33. Re5+ $2 Kf4 $19) 33... Rxc2+ 34. Kd1 Rh2 35. Rxh6 Nc4 36. Rxc6 Nb2+ 37. Ke1 Nd3+ 38. Kd1 Nxb4 $19) (32. Nd2 $1 $15) 32... Nc4+ $19 {[%emt 0:00:12]} ({Not} 32... Nxc2 $2 33. Kc3) 33. Kb1 {[%emt 0:00:55]} Na3+ {[%emt 0:02:16]} 34. Kb2 $1 {[%emt 0:00:01]} Nxc2 {[%emt 0:00:34] Threatens to win with ...Ne3+.} 35. Kc3 {[%emt 0:00:01]} Ne3 {[%emt 0:00:14] Against Rf5+} 36. Rf7 {[%emt 0:03:24]} (36. Ra1) 36... Nd1+ {[%emt 0:01:20]} 37. Kd3 {[%emt 0:00:01]} Nb2+ {[%emt 0:00:32]} 38. Kc3 {[%emt 0:00:16]} Na4+ {[%emt 0:00:00]} 39. Kd3 {[%emt 0:01:01]} Rg3+ {[%emt 0:00:20]} 40. Kc2 {[%emt 0:00:00]} Rc3+ {[%emt 0:00:00]} 41. Kd2 {[%emt 0:00:16]} Rxb3 {[%emt 0:00:17]} 42. Rxa7 {[%emt 0:00:30]} Rxb4 {[%emt 0:00:00] KRN-KR} 43. Rd7+ {[%emt 0:00:00]} Ke4 {[%emt 0:00:03]} 44. Rh7 {[%emt 0:00:00]} Rb2+ {[%emt 0:01:00]} 45. Kc1 {[%emt 0:00:44]} Kd3 {[%emt 0:00:30] Black mates.} 46. Rg7 {[%emt 0:00:30]} Re2 {[%emt 0:00:30][%cal Re2e1]} 47. Rg3+ {[%emt 0:00:30]} Re3 {[%emt 0:00:30]} 48. Rg1 {[%emt 0:02:00]} Kc3 {[%emt 0:01:04]} 49. h5 {[%emt 0:00:49]} b5 {[%emt 0:00:21][%cal Bb6b5,Bb5b4][%mdl 32]} 50. d5 {[%emt 0:00:49]} cxd5 {[%emt 0:00:18]} 51. Kb1 {[%emt 0:00:49]} b4 {[%emt 0:00:00] Weighted Error Value: White=0.64/Black=0.23 (precise)} 0-1